[Event "28th Hit Open-A 2024"]
[Site "Nova Gorica"]
[Date "2024.01.31"]
[Round "7.36"]
[White "Gricnik, Tine"]
[Black "Vicic, Mark"]
[Result "1/2-1/2"]
[ECO "D24"]
[WhiteElo "1758"]
[BlackElo "1729"]
[Annotator "NA COMBH"]
[PlyCount "53"]
[EventDate "2024.01.22"]
[EventType "swiss"]
[EventCountry "SLO"]
[SourceTitle "playchess.com"]
[Source "ChessBase"]
[SourceQuality "1"]
[TimeControl "5400+30"]

1. d4 {[%emt 0:00:05]} d5 {[%emt 0:00:05]} 2. c4 {[%emt 0:00:05]} dxc4 {[%emt 0:00:19]} 3. Nf3 {[%emt 0:00:23]} Nf6 {[%emt 0:00:27]} 4. Nc3 {[%emt 0:00:47]} a6 {[%emt 0:01:10]} 5. a4 {[%emt 0:01:29]} e6 {[%emt 0:02:43]} 6. e4 {[%emt 0:00:27]} Bb4 {[%emt 0:01:35]} 7. Bg5 {[%emt 0:00:32]} h6 {[%emt 0:01:13]} 8. Bxf6 {[%emt 0:00:42]} Qxf6 {[%emt 0:00:04]} 9. Bxc4 {[%emt 0:00:17]} O-O {[%emt 0:01:17]} 10. O-O {[%emt 0:00:19]} Rd8 {[%emt 0:02:10]} 11. Qb3 {[%emt 0:01:26]} a5 {[%emt 0:05:54]} 12. e5 {[%emt 0:02:39]} Qe7 {[%emt 0:01:45]} 13. d5 {[%emt 0:02:06]} Bxc3 {[%emt 0:02:17]} 14. bxc3 {[%emt 0:00:18]} exd5 {[%emt 0:01:06]} 15. Bxd5 {[%emt 0:00:16]} c6 {[%emt 0:00:39]} 16. Bc4 {[%emt 0:00:46]} Na6 {[%emt 0:43:06]} 17. Rad1 {[%emt 0:03:03]} Rxd1 {[%emt 0:01:34]} 18. Rxd1 {[%emt 0:00:31]} Bg4 {[%emt 0:00:48]} 19. Bxa6 {[%emt 0:08:33]} Bxf3 {[%emt 0:04:05]} 20. gxf3 {[%emt 0:04:41]} Rxa6 {[%emt 0:06:42]} 21. f4 {[%emt 0:00:54]} Ra8 {[%emt 0:01:42]} 22. Rd6 {[%emt 0:05:34]} Rd8 {[%emt 0:01:34]} 23. Qd1 {[%emt 0:09:24]} Rxd6 {[%emt 0:00:19]} 24. exd6 {[%emt 0:00:13]} Qd7 {[%emt 0:00:13]} 25. c4 {[%emt 0:00:06]} b6 {[%emt 0:02:08]} 26. Qd4 {[%emt 0:00:08]} Kf8 {[%emt 0:05:08]} 27. Qxb6 {[%emt 0:00:24]} 1/2-1/2

[Event "28th Hit Open-A 2024"]
[Site "Nova Gorica"]
[Date "2024.01.31"]
[Round "7.37"]
[White "Zlatanovic, Marcus"]
[Black "Vodnik, Val"]
[Result "0-1"]
[ECO "C70"]
[WhiteElo "1745"]
[BlackElo "1661"]
[Annotator "NA RC"]
[PlyCount "76"]
[EventDate "2024.01.22"]
[EventType "swiss"]
[EventCountry "SLO"]
[SourceTitle "playchess.com"]
[Source "ChessBase"]
[SourceQuality "1"]
[TimeControl "5400+30"]

1. e4 {[%emt 0:02:05]} e5 {[%emt 0:00:04]} 2. Nf3 {[%emt 0:00:15]} Nc6 {[%emt 0:00:05]} 3. Bb5 {[%emt 0:00:12]} a6 {[%emt 0:00:06]} 4. Ba4 {[%emt 0:00:10]} Nge7 {[%emt 0:00:06]} 5. O-O {[%emt 0:02:52]} g6 {[%emt 0:00:42]} 6. d3 {[%emt 0:02:55]} Bg7 {[%emt 0:00:07]} 7. Be3 {[%emt 0:09:03]} O-O {[%emt 0:01:06]} 8. Nc3 {[%emt 0:02:59]} b5 {[%emt 0:00:11]} 9. Bb3 {[%emt 0:00:08]} d6 {[%emt 0:00:13]} 10. a4 {[%emt 0:02:02]} b4 {[%emt 0:01:14]} 11. Nd5 {[%emt 0:00:33]} a5 {[%emt 0:00:40]} 12. Qd2 {[%emt 0:09:26]} Kh8 {[%emt 0:13:51]} 13. Bh6 {[%emt 0:01:26]} f5 {[%emt 0:00:16]} 14. Bxg7+ {[%emt 0:09:29]} Kxg7 {[%emt 0:00:04]} 15. c3 {[%emt 0:02:25]} Rb8 {[%emt 0:01:13]} 16. Rab1 {[%emt 0:05:05]} Nxd5 {[%emt 0:00:52]} 17. exd5 {[%emt 0:06:19]} Ne7 {[%emt 0:00:10]} 18. c4 {[%emt 0:00:42]} f4 {[%emt 0:02:52]} 19. d4 {[%emt 0:05:01]} Bg4 {[%emt 0:13:57]} 20. Bd1 {[%emt 0:02:06]} Bxf3 {[%emt 0:05:58]} 21. Bxf3 {[%emt 0:00:05]} g5 {[%emt 0:00:08]} 22. Rfe1 {[%emt 0:04:36]} Ng6 {[%emt 0:00:12]} 23. Bg4 {[%emt 0:07:56]} Qf6 {[%emt 0:07:11]} 24. Re2 {[%emt 0:04:42]} Rh8 {[%emt 0:07:27]} 25. f3 {[%emt 0:02:57]} h5 {[%emt 0:00:27]} 26. Be6 {[%emt 0:00:05]} exd4 {[%emt 0:15:22]} 27. Re4 {[%emt 0:02:40]} Ne5 {[%emt 0:00:16]} 28. Qxd4 {[%emt 0:00:58]} c5 {[%emt 0:00:06]} 29. dxc6 {[%emt 0:01:01]} Qxe6 {[%emt 0:00:09]} 30. Rbe1 {[%emt 0:00:21]} Kf7 {[%emt 0:09:04]} 31. Qa7+ {[%emt 0:03:59]} Qe7 {[%emt 0:00:11]} 32. Qxe7+ {[%emt 0:00:15]} Kxe7 {[%emt 0:00:01]} 33. c5 {[%emt 0:00:07]} Kf6 {[%emt 0:03:48]} 34. c7 {[%emt 0:00:29]} Rbc8 {[%emt 0:00:04]} 35. cxd6 {[%emt 0:00:05]} Nf7 {[%emt 0:00:06]} 36. Re8 {[%emt 0:05:15]} Rhxe8 {[%emt 0:02:34]} 37. Rxe8 {[%emt 0:00:08]} Nxd6 {[%emt 0:00:05]} 38. Rd8 {[%emt 0:00:05]} Ke7 {[%emt 0:00:08]} 0-1

[Event "28th Hit Open-A 2024"]
[Site "Nova Gorica"]
[Date "2024.01.31"]
[Round "7.38"]
[White "Barbir, Petar"]
[Black "Bajec, Borut"]
[Result "1-0"]
[ECO "B54"]
[WhiteElo "1738"]
[BlackElo "1703"]
[Annotator "NA RC"]
[PlyCount "73"]
[EventDate "2024.01.22"]
[EventType "swiss"]
[EventCountry "SLO"]
[SourceTitle "playchess.com"]
[Source "ChessBase"]
[SourceQuality "1"]
[TimeControl "5400+30"]

1. e4 {[%emt 0:00:14]} c5 {[%emt 0:04:15]} 2. Nf3 {[%emt 0:00:11]} Nc6 {[%emt 0:00:21]} 3. d4 {[%emt 0:00:20]} cxd4 {[%emt 0:00:27]} 4. Nxd4 {[%emt 0:00:08]} d6 {[%emt 0:00:43]} 5. c4 {[%emt 0:00:50]} Nf6 {[%emt 0:00:43]} 6. Nc3 {[%emt 0:00:35]} e6 {[%emt 0:00:27]} 7. Be2 {[%emt 0:02:25]} Be7 {[%emt 0:00:32]} 8. O-O {[%emt 0:01:32]} O-O {[%emt 0:00:25]} 9. Be3 {[%emt 0:01:42]} Bd7 {[%emt 0:04:29]} 10. f4 {[%emt 0:07:07]} Rc8 {[%emt 0:03:37]} 11. Qd2 {[%emt 0:10:00]} a6 {[%emt 0:03:55]} 12. Nc2 {[%emt 0:10:20]} Re8 {[%emt 0:02:39]} 13. Kh1 {[%emt 0:12:50]} Qc7 {[%emt 0:06:19]} 14. g4 {[%emt 0:05:56]} Rf8 {[%emt 0:09:41]} 15. g5 {[%emt 0:03:04]} Ne8 {[%emt 0:00:38]} 16. f5 {[%emt 0:04:26]} f6 {[%emt 0:03:35]} 17. g6 {[%emt 0:05:17]} Ne5 {[%emt 0:00:54]} 18. fxe6 {[%emt 0:04:11]} Bxe6 {[%emt 0:00:14]} 19. Nd5 {[%emt 0:00:18]} Bxd5 {[%emt 0:03:43]} 20. Qxd5+ {[%emt 0:01:57]} Kh8 {[%emt 0:04:03]} 21. Nd4 {[%emt 0:06:46]} Qb8 {[%emt 0:02:09]} 22. Ne6 {[%emt 0:07:34]} Nc7 {[%emt 0:01:03]} 23. Nxc7 {[%emt 0:00:15]} Qxc7 {[%emt 0:00:41]} 24. gxh7 {[%emt 0:03:21]} Kxh7 {[%emt 0:15:48]} 25. b3 {[%emt 0:07:17]} g6 {[%emt 0:01:44]} 26. Rf4 {[%emt 0:00:32]} Kg7 {[%emt 0:00:28]} 27. Raf1 {[%emt 0:00:40]} Rh8 {[%emt 0:01:24]} 28. Bd4 {[%emt 0:00:30]} Rh6 {[%emt 0:01:00]} 29. c5 {[%emt 0:01:30]} Rch8 {[%emt 0:00:29]} 30. R1f2 {[%emt 0:00:51]} g5 {[%emt 0:02:36]} 31. Rf5 {[%emt 0:00:50]} Rf8 {[%emt 0:04:51]} 32. cxd6 {[%emt 0:01:11]} Bxd6 {[%emt 0:01:24]} 33. Rg2 {[%emt 0:00:59]} Rfh8 {[%emt 0:07:07]} 34. Kg1 {[%emt 0:00:50]} Nd7 {[%emt 0:00:53]} 35. Rfxg5+ {[%emt 0:00:12]} Kf8 {[%emt 0:00:28]} 36. Rg8+ {[%emt 0:00:14]} Rxg8 {[%emt 0:02:18]} 37. Qxg8+ {[%emt 0:00:07]} 1-0

[Event "28th Hit Open-A 2024"]
[Site "Nova Gorica"]
[Date "2024.01.31"]
[Round "7.39"]
[White "Papler, Peter"]
[Black "Cortese, Lina"]
[Result "0-1"]
[ECO "D30"]
[WhiteElo "1691"]
[BlackElo "1582"]
[Annotator "NA COMBH"]
[PlyCount "74"]
[EventDate "2024.01.22"]
[EventType "swiss"]
[EventCountry "SLO"]
[SourceTitle "playchess.com"]
[Source "ChessBase"]
[SourceQuality "1"]
[TimeControl "5400+30"]

1. d4 {[%emt 0:00:13]} e6 {[%emt 0:00:09]} 2. Nf3 {[%emt 0:00:38]} f5 {[%emt 0:00:34]} 3. e3 {[%emt 0:00:19]} Nf6 {[%emt 0:00:07]} 4. Nbd2 {[%emt 0:00:23]} d5 {[%emt 0:00:12]} 5. Be2 {[%emt 0:01:45]} Bd6 {[%emt 0:00:11]} 6. c4 {[%emt 0:00:22]} c6 {[%emt 0:00:07]} 7. O-O {[%emt 0:01:05]} Nbd7 {[%emt 0:00:47]} 8. b3 {[%emt 0:00:32]} O-O {[%emt 0:01:30]} 9. Bb2 {[%emt 0:00:55]} Re8 {[%emt 0:04:38]} 10. Ne5 {[%emt 0:04:05]} Ne4 {[%emt 0:01:10]} 11. f3 {[%emt 0:00:59]} Nxd2 {[%emt 0:01:54]} 12. Qxd2 {[%emt 0:00:13]} Nxe5 {[%emt 0:06:37]} 13. dxe5 {[%emt 0:00:07]} Bf8 {[%emt 0:05:33]} 14. Rad1 {[%emt 0:00:23]} b6 {[%emt 0:01:24]} 15. e4 {[%emt 0:03:01]} fxe4 {[%emt 0:03:33]} 16. fxe4 {[%emt 0:00:32]} Bc5+ {[%emt 0:01:08]} 17. Kh1 {[%emt 0:00:52]} Bb7 {[%emt 0:00:19]} 18. exd5 {[%emt 0:05:10]} cxd5 {[%emt 0:00:36]} 19. Bf3 {[%emt 0:01:46]} Rf8 {[%emt 0:01:53]} 20. Rfe1 {[%emt 0:02:35]} Qe7 {[%emt 0:00:21]} 21. cxd5 {[%emt 0:01:37]} Rxf3 {[%emt 0:00:23]} 22. gxf3 {[%emt 0:01:58]} Bxd5 {[%emt 0:00:42]} 23. Rf1 {[%emt 0:00:56]} Rf8 {[%emt 0:00:58]} 24. Qg2 {[%emt 0:03:34]} Rf5 {[%emt 0:01:45]} 25. Rxd5 {[%emt 0:01:49]} exd5 {[%emt 0:02:47]} 26. f4 {[%emt 0:00:16]} Qe6 {[%emt 0:01:58]} 27. Qf3 {[%emt 0:01:47]} Qd7 {[%emt 0:04:35]} 28. Rd1 {[%emt 0:01:04]} d4 {[%emt 0:01:42]} 29. Qe4 {[%emt 0:00:40]} g5 {[%emt 0:05:10]} 30. fxg5 {[%emt 0:12:04]} d3 {[%emt 0:01:45]} 31. h4 {[%emt 0:02:01]} Rf1+ {[%emt 0:09:24]} 32. Kg2 {[%emt 0:01:54]} Rxd1 {[%emt 0:02:04]} 33. e6 {[%emt 0:00:33]} Qd6 {[%emt 0:02:03]} 34. Kf3 {[%emt 0:05:23]} Rf1+ {[%emt 0:01:34]} 35. Kg4 {[%emt 0:00:34]} Rf4+ {[%emt 0:02:21]} 36. Qxf4 {[%emt 0:00:54]} Qxf4+ {[%emt 0:00:03]} 37. Kxf4 {[%emt 0:00:18]} d2 {[%emt 0:00:05]} 0-1

[Event "28th Hit Open-A 2024"]
[Site "Nova Gorica"]
[Date "2024.01.31"]
[Round "7.40"]
[White "Gratton, Damjan"]
[Black "Cokan, Mirko"]
[Result "0-1"]
[ECO "C63"]
[WhiteElo "1691"]
[BlackElo "1614"]
[Annotator "NA RC"]
[PlyCount "84"]
[EventDate "2024.01.22"]
[EventType "swiss"]
[EventCountry "SLO"]
[SourceTitle "playchess.com"]
[Source "ChessBase"]
[SourceQuality "1"]
[TimeControl "5400+30"]

1. e4 {[%emt 0:00:05]} e5 {[%emt 0:00:35]} 2. Nf3 {[%emt 0:00:25]} Nc6 {[%emt 0:00:26]} 3. Bb5 {[%emt 0:00:17]} f5 {[%emt 0:02:25]} 4. d3 {[%emt 0:02:16]} fxe4 {[%emt 0:04:54]} 5. dxe4 {[%emt 0:01:09]} Nf6 {[%emt 0:00:19]} 6. Nbd2 {[%emt 0:02:14]} Bc5 {[%emt 0:02:48]} 7. c3 {[%emt 0:02:30]} O-O {[%emt 0:03:13]} 8. O-O {[%emt 0:01:18]} d6 {[%emt 0:00:52]} 9. h3 {[%emt 0:01:21]} Qe7 {[%emt 0:03:31]} 10. Re1 {[%emt 0:02:43]} Nd8 {[%emt 0:00:56]} 11. Nf1 {[%emt 0:01:20]} c6 {[%emt 0:04:54]} 12. Ba4 {[%emt 0:01:07]} b5 {[%emt 0:01:37]} 13. Bc2 {[%emt 0:01:27]} Kh8 {[%emt 0:01:11]} 14. Bg5 {[%emt 0:01:18]} Ne6 {[%emt 0:01:56]} 15. Bh4 {[%emt 0:02:04]} Bb7 {[%emt 0:04:40]} 16. b4 {[%emt 0:03:46]} Bb6 {[%emt 0:00:25]} 17. Ne3 {[%emt 0:02:34]} Bxe3 {[%emt 0:02:06]} 18. Rxe3 {[%emt 0:00:42]} Rad8 {[%emt 0:00:56]} 19. Qf1 {[%emt 0:04:22]} Nf4 {[%emt 0:01:21]} 20. a4 {[%emt 0:03:07]} a6 {[%emt 0:05:22]} 21. axb5 {[%emt 0:02:28]} cxb5 {[%emt 0:00:26]} 22. Nd2 {[%emt 0:07:13]} Ng6 {[%emt 0:01:21]} 23. Nf3 {[%emt 0:03:46]} h6 {[%emt 0:05:30]} 24. c4 {[%emt 0:02:29]} bxc4 {[%emt 0:02:57]} 25. Qxc4 {[%emt 0:01:57]} Bc8 {[%emt 0:02:59]} 26. Bb3 {[%emt 0:04:30]} Nf4 {[%emt 0:02:24]} 27. Qf1 {[%emt 0:02:27]} Qe8 {[%emt 0:01:55]} 28. Rc1 {[%emt 0:07:49]} Ng6 {[%emt 0:01:23]} 29. Bg3 {[%emt 0:01:19]} Nh5 {[%emt 0:00:26]} 30. Bh2 {[%emt 0:03:05]} Nhf4 {[%emt 0:02:56]} 31. Bc4 {[%emt 0:01:55]} Rf6 {[%emt 0:01:40]} 32. Bxa6 {[%emt 0:01:38]} Bxa6 {[%emt 0:03:05]} 33. Qxa6 {[%emt 0:00:09]} d5 {[%emt 0:00:07]} 34. Qf1 {[%emt 0:00:54]} d4 {[%emt 0:00:29]} 35. Rb3 {[%emt 0:02:06]} d3 {[%emt 0:01:15]} 36. Rd1 {[%emt 0:01:07]} Qe6 {[%emt 0:03:19]} 37. Rb2 {[%emt 0:01:13]} Rdf8 {[%emt 0:02:02]} 38. Ne1 {[%emt 0:01:34]} Ne2+ {[%emt 0:02:18]} 39. Rxe2 {[%emt 0:02:46]} dxe2 {[%emt 0:01:32]} 40. Qxe2 {[%emt 0:00:31]} Rxf2 {[%emt 0:00:36]} 41. Qd3 {[%emt 0:03:06]} Rf1+ {[%emt 0:00:50]} 42. Qxf1 {[%emt 0:00:09]} Qb6+ {[%emt 0:03:08]} 0-1

[Event "28th Hit Open-A 2024"]
[Site "Nova Gorica"]
[Date "2024.01.31"]
[Round "7.41"]
[White "Mihelj, Edvard"]
[Black "Mulec, Dejan"]
[Result "1/2-1/2"]
[ECO "B07"]
[WhiteElo "1618"]
[BlackElo "1577"]
[Annotator "NA COMBH"]
[PlyCount "49"]
[EventDate "2024.01.22"]
[EventType "swiss"]
[EventCountry "SLO"]
[SourceTitle "playchess.com"]
[Source "ChessBase"]
[SourceQuality "1"]
[TimeControl "5400+30"]

1. e4 {[%emt 0:00:09]} d6 {[%emt 0:00:09]} 2. d4 {[%emt 0:00:35]} Nf6 {[%emt 0:00:10]} 3. Nc3 {[%emt 0:00:27]} g6 {[%emt 0:00:13]} 4. Bc4 {[%emt 0:00:36]} Bg7 {[%emt 0:00:15]} 5. h3 {[%emt 0:00:55]} c6 {[%emt 0:00:36]} 6. a3 {[%emt 0:02:51]} Nbd7 {[%emt 0:01:40]} 7. Nf3 {[%emt 0:00:31]} O-O {[%emt 0:01:41]} 8. Bf4 {[%emt 0:01:21]} Nxe4 {[%emt 0:06:30]} 9. Nxe4 {[%emt 0:02:14]} d5 {[%emt 0:00:18]} 10. Bxd5 {[%emt 0:02:18]} cxd5 {[%emt 0:00:50]} 11. Ng3 {[%emt 0:01:18]} Re8 {[%emt 0:03:44]} 12. O-O {[%emt 0:00:18]} e6 {[%emt 0:02:29]} 13. c3 {[%emt 0:00:56]} Nf6 {[%emt 0:01:37]} 14. Qc1 {[%emt 0:01:21]} Bd7 {[%emt 0:03:12]} 15. Re1 {[%emt 0:02:29]} a5 {[%emt 0:01:45]} 16. Bh6 {[%emt 0:01:52]} Bb5 {[%emt 0:01:34]} 17. Bxg7 {[%emt 0:00:48]} Kxg7 {[%emt 0:04:01]} 18. Ne5 {[%emt 0:00:46]} Nd7 {[%emt 0:03:43]} 19. Ng4 {[%emt 0:02:06]} Qh4 {[%emt 0:06:16]} 20. Re3 {[%emt 0:01:55]} h5 {[%emt 0:01:35]} 21. Nh2 {[%emt 0:00:35]} Qf4 {[%emt 0:02:54]} 22. Qd2 {[%emt 0:02:08]} Nf6 {[%emt 0:01:22]} 23. Ne2 {[%emt 0:01:36]} Qh6 {[%emt 0:03:42]} 24. Ng3 {[%emt 0:00:06]} Qf4 {[%emt 0:00:04]} 25. Nxh5+ {[%emt 0:00:35]} 1/2-1/2

[Event "28th Hit Open-A 2024"]
[Site "Nova Gorica"]
[Date "2024.02.01"]
[Round "8.1"]
[White "Ceres, Dragos"]
[Black "Basso, Pier Luigi"]
[Result "0-1"]
[ECO "C54"]
[WhiteElo "2438"]
[BlackElo "2482"]
[Annotator "ChessBase"]
[PlyCount "146"]
[EventDate "2024.01.22"]
[EventType "swiss"]
[EventCountry "SLO"]
[SourceTitle "playchess.com"]
[Source "ChessBase"]
[SourceQuality "1"]
[TimeControl "5400+30"]

1. e4 {[%emt 0:02:31]} e5 {[%emt 0:02:55]} 2. Nf3 {[%emt 0:02:07]} Nc6 {[%emt 0:00:06]} 3. Bc4 {[%emt 0:00:04]} Bc5 {[%emt 0:00:25]} 4. O-O {[%emt 0:00:09]} Nf6 {[%emt 0:00:06]} 5. d3 {[%emt 0:00:04]} O-O {[%emt 0:04:40]} 6. c3 {[%emt 0:00:06]} d5 {[%emt 0:01:40]} 7. exd5 {[%emt 0:00:05]} Nxd5 {[%emt 0:00:05]} 8. a4 {[%emt 0:00:04]} Bf5 {[%emt 0:06:39]} 9. a5 {[%emt 0:01:39]} a6 {[%emt 0:03:11]} 10. Re1 {[%emt 0:00:08]} Qd6 {[%emt 0:03:13]} 11. Qe2 {[%emt 0:05:48]} Nf6 {[%emt 0:04:16]} 12. Nbd2 {[%emt 0:00:10]} Rad8 {[%emt 0:01:29]} 13. Ne4 {[%emt 0:02:35]} Nxe4 {[%emt 0:00:41]} 14. dxe4 {[%emt 0:00:05]} Be6 {[%emt 0:00:06]} 15. b4 {[%emt 0:00:07]} Ba7 {[%emt 0:00:43]} 16. Bxe6 {[%emt 0:12:25]} Qxe6 {[%emt 0:00:24]} 17. b5 {[%emt 0:00:02]} axb5 {[%emt 0:11:25]} 18. Qxb5 {[%emt 0:00:05]} f5 {[%emt 0:09:35]} 19. Ba3 {[%emt 0:42:39]} fxe4 {[%emt 0:09:33]} 20. Rxe4 {[%emt 0:02:41]} Qg6 {[%emt 0:04:28]} 21. Qc4+ {[%emt 0:07:52]} Rf7 {[%emt 0:01:04]} 22. Nxe5 {[%emt 0:08:02]} Nxe5 {[%emt 0:00:43]} 23. Rxe5 {[%emt 0:00:09]} Bxf2+ {[%emt 0:07:23]} 24. Kh1 {[%emt 0:00:48]} Kh8 {[%emt 0:00:36]} 25. Bc5 {[%emt 0:09:35]} Bxc5 {[%emt 0:01:44]} 26. Qxc5 {[%emt 0:00:18]} Rdf8 {[%emt 0:00:31]} 27. Rg1 {[%emt 0:00:54]} h6 {[%emt 0:01:42]} 28. h3 {[%emt 0:00:04]} Kh7 {[%emt 0:01:00]} 29. Qb4 {[%emt 0:01:35]} c6 {[%emt 0:03:55]} 30. Qc4 {[%emt 0:00:12]} Rf4 {[%emt 0:03:55]} 31. Qe6 {[%emt 0:00:08]} Qxe6 {[%emt 0:01:11]} 32. Rxe6 {[%emt 0:00:14]} Ra4 {[%emt 0:02:55]} 33. Re7 {[%emt 0:00:43]} Rxa5 {[%emt 0:00:10]} 34. Rxb7 {[%emt 0:00:07]} Rc5 {[%emt 0:00:12]} 35. Rc1 {[%emt 0:00:15]} Rf2 {[%emt 0:01:19]} 36. Kg1 {[%emt 0:00:18]} Rd2 {[%emt 0:00:10]} 37. Rf7 {[%emt 0:00:10]} h5 {[%emt 0:02:17]} 38. Rf2 {[%emt 0:00:11]} Rd3 {[%emt 0:00:07]} 39. Rfc2 {[%emt 0:03:06]} Kg6 {[%emt 0:00:57]} 40. Kf2 {[%emt 0:00:08]} Kf5 {[%emt 0:00:08]} 41. Ke2 {[%emt 0:00:06]} Rg3 {[%emt 0:01:28]} 42. Kf2 {[%emt 0:00:32]} Rd3 {[%emt 0:01:09]} 43. Ke2 {[%emt 0:00:09]} Ke4 {[%emt 0:00:06]} 44. c4 {[%emt 0:00:10]} Kd4 {[%emt 0:01:35]} 45. Kf2 {[%emt 0:00:11]} g5 {[%emt 0:01:52]} 46. Ke2 {[%emt 0:00:28]} Re3+ {[%emt 0:01:00]} 47. Kf2 {[%emt 0:00:56]} Rd3 {[%emt 0:00:23]} 48. Ke2 {[%emt 0:00:18]} Re5+ {[%emt 0:00:09]} 49. Kf2 {[%emt 0:00:06]} Rf5+ {[%emt 0:00:12]} 50. Kg1 {[%emt 0:00:18]} c5 {[%emt 0:01:18]} 51. Kh2 {[%emt 0:00:25]} h4 {[%emt 0:01:05]} 52. Kg1 {[%emt 0:00:07]} Re5 {[%emt 0:00:34]} 53. Kh2 {[%emt 0:01:59]} Ree3 {[%emt 0:02:07]} 54. Rf2 {[%emt 0:00:20]} Rc3 {[%emt 0:00:24]} 55. Rd1+ {[%emt 0:00:06]} Rcd3 {[%emt 0:01:27]} 56. Rc1 {[%emt 0:00:24]} Rc3 {[%emt 0:00:28]} 57. Rd1+ {[%emt 0:00:08]} Kxc4 {[%emt 0:00:25]} 58. Rf5 {[%emt 0:00:12]} Rg3 {[%emt 0:01:04]} 59. Rdd5 {[%emt 0:00:08]} Kb4 {[%emt 0:00:33]} 60. Rxg5 {[%emt 0:00:05]} Rxg5 {[%emt 0:00:16]} 61. Rxg5 {[%emt 0:00:10]} Rd3 {[%emt 0:01:08]} 62. Rg4+ {[%emt 0:01:15]} Rd4 {[%emt 0:00:08]} 63. g3 {[%emt 0:00:26]} hxg3+ {[%emt 0:00:36]} 64. Kg2 {[%emt 0:00:05]} Ka4 {[%emt 0:04:37]} 65. Rxg3 {[%emt 0:00:55]} c4 {[%emt 0:00:11]} 66. Kf2 {[%emt 0:00:17]} Kb4 {[%emt 0:00:02]} 67. Ke2 {[%emt 0:00:14]} c3 {[%emt 0:00:09]} 68. Rg8 {[%emt 0:00:29]} c2 {[%emt 0:00:30]} 69. Rc8 {[%emt 0:01:13]} Kb3 {[%emt 0:00:18]} 70. Rb8+ {[%emt 0:02:15]} Kc3 {[%emt 0:00:09]} 71. Rc8+ {[%emt 0:00:11]} Kb2 {[%emt 0:00:05]} 72. Rb8+ {[%emt 0:00:10]} Kc1 {[%emt 0:00:05]} 73. Rb7 {[%emt 0:01:05]} Re4+ {[%emt 0:00:15]} 0-1

[Event "28th Hit Open-A 2024"]
[Site "Nova Gorica"]
[Date "2024.02.01"]
[Round "8.2"]
[White "Sebenik, Matej"]
[Black "Berkes, Ferenc"]
[Result "1/2-1/2"]
[ECO "D13"]
[WhiteElo "2536"]
[BlackElo "2613"]
[Annotator "ChessBase"]
[PlyCount "24"]
[EventDate "2024.01.22"]
[EventType "swiss"]
[EventCountry "SLO"]
[SourceTitle "playchess.com"]
[Source "ChessBase"]
[SourceQuality "1"]
[TimeControl "5400+30"]

1. d4 {[%emt 0:00:07]} d5 {[%emt 0:00:11]} 2. c4 {[%emt 0:00:22]} c6 {[%emt 0:00:11]} 3. cxd5 {[%emt 0:00:56]} cxd5 {[%emt 0:00:08]} 4. Bf4 {[%emt 0:00:06]} Nc6 {[%emt 0:02:00]} 5. e3 {[%emt 0:00:21]} Nf6 {[%emt 0:00:26]} 6. Nc3 {[%emt 0:00:13]} a6 {[%emt 0:00:28]} 7. Rc1 {[%emt 0:01:33]} Bf5 {[%emt 0:01:10]} 8. Nf3 {[%emt 0:00:18]} e6 {[%emt 0:00:17]} 9. Qb3 {[%emt 0:03:08]} Bb4 {[%emt 0:01:35]} 10. Ne5 {[%emt 0:10:55]} Bxc3+ {[%emt 0:00:40]} 11. bxc3 {[%emt 0:09:24]} Nxe5 {[%emt 0:00:08]} 12. Bxe5 {[%emt 0:00:05]} O-O {[%emt 0:00:06]} 1/2-1/2

[Event "28th Hit Open-A 2024"]
[Site "Nova Gorica"]
[Date "2024.02.01"]
[Round "8.3"]
[White "Csonka, Balazs"]
[Black "Gaal, Zsoka"]
[Result "0-1"]
[ECO "A17"]
[WhiteElo "2479"]
[BlackElo "2341"]
[Annotator "ChessBase"]
[PlyCount "74"]
[EventDate "2024.01.22"]
[EventType "swiss"]
[EventCountry "SLO"]
[SourceTitle "playchess.com"]
[Source "ChessBase"]
[SourceQuality "1"]
[TimeControl "5400+30"]

1. Nf3 {[%emt 0:00:04]} Nf6 {[%emt 0:00:51]} 2. c4 {[%emt 0:00:11]} e6 {[%emt 0:00:12]} 3. Nc3 {[%emt 0:00:09]} Bb4 {[%emt 0:00:18]} 4. Qc2 {[%emt 0:19:05]} O-O {[%emt 0:02:56]} 5. a3 {[%emt 0:00:28]} Bxc3 {[%emt 0:00:45]} 6. Qxc3 {[%emt 0:00:08]} d6 {[%emt 0:07:25]} 7. b4 {[%emt 0:03:24]} e5 {[%emt 0:03:55]} 8. Bb2 {[%emt 0:00:42]} Nbd7 {[%emt 0:11:22]} 9. d3 {[%emt 0:01:24]} b6 {[%emt 0:02:52]} 10. e3 {[%emt 0:06:30]} Bb7 {[%emt 0:07:06]} 11. Be2 {[%emt 0:00:10]} Re8 {[%emt 0:01:15]} 12. O-O {[%emt 0:16:46]} a5 13. d4 {[%emt 0:00:00]} e4 {[%emt 0:11:45]} 14. Nd2 {[%emt 0:00:00]} Qe7 {[%emt 0:03:40]} 15. Rfc1 {[%emt 0:00:00]} c5 {[%emt 0:00:46]} 16. bxc5 {[%emt 0:04:13]} bxc5 {[%emt 0:00:54]} 17. Rab1 {[%emt 0:03:50]} a4 {[%emt 0:05:59]} 18. Qc2 {[%emt 0:04:07]} cxd4 {[%emt 0:09:23]} 19. Bxd4 {[%emt 0:01:03]} Nc5 {[%emt 0:00:06]} 20. Qc3 {[%emt 0:05:25]} Bc6 {[%emt 0:04:10]} 21. Rb6 {[%emt 0:11:29]} Rec8 {[%emt 0:01:42]} 22. Bxf6 {[%emt 0:00:33]} gxf6 {[%emt 0:01:49]} 23. Bg4 {[%emt 0:07:50]} Bd7 {[%emt 0:01:56]} 24. Bxd7 {[%emt 0:04:12]} Nxd7 {[%emt 0:00:07]} 25. Rb7 {[%emt 0:00:21]} f5 {[%emt 0:01:24]} 26. Qd4 {[%emt 0:02:35]} Qe6 {[%emt 0:01:04]} 27. h4 {[%emt 0:02:53]} Ra6 {[%emt 0:02:17]} 28. Rcb1 {[%emt 0:01:04]} Rac6 {[%emt 0:01:26]} 29. R1b4 {[%emt 0:02:43]} Ne5 {[%emt 0:03:28]} 30. Rxa4 {[%emt 0:00:34]} Qf6 {[%emt 0:00:37]} 31. f4 {[%emt 0:02:11]} exf3 {[%emt 0:00:29]} 32. gxf3 {[%emt 0:00:08]} Rxc4 {[%emt 0:00:53]} 33. Rxc4 {[%emt 0:01:46]} Rxc4 {[%emt 0:00:06]} 34. Qxc4 {[%emt 0:00:58]} Nxc4 {[%emt 0:00:08]} 35. Nxc4 {[%emt 0:00:06]} Qxh4 {[%emt 0:03:50]} 36. Nd2 {[%emt 0:00:34]} Qg3+ {[%emt 0:00:55]} 37. Kf1 {[%emt 0:00:02]} h5 {[%emt 0:00:17]} 0-1